fUSD/lending_fUSD_20240521
["ID","MTS","AMOUNT","RATE_DAILY","PERIOD"]
[327639722,1716265835328,-150.5,0.0003548,15]
[327639723,1716265835337,-150.5,0.0003549,15]
[327639724,1716265835346,-150.5,0.0003549,15]
[327639725,1716265835355,-150.5,0.0003549,15]
[327639726,1716265835364,-484.0,0.0003549,15]
[327639727,1716265835374,-484.0,0.0003549,15]
[327639728,1716265835383,-484.0,0.0003549,15]
[327639729,1716265835393,-484.0,0.0003549,15]
[327639730,1716265835402,-273.0,0.0003549,15]
[327639731,1716265835411,-186.0,0.0003549,15]
[327639732,1716265835420,-186.0,0.0003549,15]
[327639733,1716265835430,-186.0,0.0003549,15]
[327639734,1716265835440,-186.0,0.0003549,15]
[327639735,1716265835449,-150.5,0.0003549,15]
[327639736,1716265835459,-151.03,0.0003549,2]
[327639737,1716265835468,-151.03,0.0003549,2]
[327639738,1716265835479,-151.03,0.0003549,2]
[327639739,1716265835488,-151.03,0.0003549,2]
[327639740,1716265835498,-151.03,0.0003549,2]
[327639741,1716265835507,-151.03,0.0003549,2]
[327639742,1716265835516,-151.03,0.0003549,2]
[327639743,1716265835525,-151.03,0.0003549,2]
[327639744,1716265835535,-151.03,0.0003549,2]
[327639745,1716265835544,-151.03,0.0003549,2]
[327639746,1716265835553,-151.03,0.0003549,2]
[327639747,1716265835563,-151.03,0.0003549,2]
[327639748,1716265835572,-151.03,0.0003549,2]
[327639749,1716265835581,-151.03,0.0003549,2]
[327639750,1716265835590,-151.03,0.0003549,2]
[327639751,1716265835600,-151.03,0.0003549,2]
[327639752,1716265835609,-151.03,0.0003549,2]
[327639753,1716265835618,-151.03,0.0003549,2]
[327639754,1716265835627,-151.03,0.0003549,2]
[327639755,1716265835636,-151.03,0.0003549,2]
[327639756,1716265835645,-151.03,0.0003549,2]
[327639757,1716265835656,-151.03,0.0003549,2]
[327639758,1716265835666,-151.03,0.0003549,2]
[327639759,1716265835677,-151.03,0.0003549,2]
[327639760,1716265835686,-151.03,0.0003549,2]
[327639761,1716265835695,-151.03,0.0003549,2]
[327639762,1716265835706,-151.03,0.0003549,2]
[327639763,1716265835716,-151.03,0.0003549,2]
[327639764,1716265835725,-151.03,0.0003549,2]
[327639765,1716265835735,-151.03,0.0003549,2]
[327639766,1716265835745,-151.03,0.0003549,2]
[327639767,1716265835755,-151.03,0.0003549,2]
[327639768,1716265835764,-151.03,0.0003549,2]
[327639769,1716265835774,-151.03,0.0003549,2]
[327639770,1716265835783,-151.03,0.0003549,2]
[327639771,1716265835792,-151.03,0.0003549,2]
[327639772,1716265835802,-151.03,0.0003549,2]
[327639773,1716265835811,-151.03,0.0003549,2]
[327639774,1716265835820,-151.03,0.0003549,2]
[327639775,1716265835830,-151.03,0.0003549,2]
[327639776,1716265835840,-151.03,0.0003549,2]
[327639777,1716265835849,-151.03,0.0003549,2]
[327639778,1716265835858,-151.03,0.0003549,2]
[327639779,1716265835868,-151.03,0.0003549,2]
[327639780,1716265835880,-151.03,0.0003549,2]
[327639781,1716265835890,-151.03,0.0003549,2]
[327639782,1716265835899,-151.03,0.0003549,2]
[327639783,1716265835909,-151.03,0.0003549,2]
[327639784,1716265835918,-151.03,0.0003549,2]
[327639785,1716265835928,-151.03,0.0003549,2]
[327639786,1716265835937,-151.03,0.0003549,2]
[327639787,1716265835946,-151.03,0.0003549,2]
[327639788,1716265835955,-151.03,0.0003549,2]
[327639789,1716265835965,-151.03,0.0003549,2]
[327639790,1716265835975,-151.03,0.0003549,2]
[327639791,1716265835985,-151.03,0.0003549,2]
[327639792,1716265835994,-151.03,0.0003549,2]
[327639793,1716265836004,-151.03,0.0003549,2]
[327639794,1716265836014,-151.03,0.0003549,2]
[327639795,1716265836024,-151.03,0.0003549,2]
[327639796,1716265836033,-151.03,0.0003549,2]
[327639797,1716265836042,-151.03,0.0003549,2]
[327639798,1716265836051,-151.03,0.0003549,2]
[327639799,1716265836061,-151.03,0.0003549,2]
[327639800,1716265836070,-151.03,0.0003549,2]
[327639801,1716265836079,-151.03,0.0003549,2]
[327639802,1716265836088,-151.03,0.0003549,2]
[327639803,1716265836098,-151.03,0.0003549,2]
[327639804,1716265836107,-172.90576968,0.0003549,2]
[327639805,1716265836116,-172.90576968,0.0003549,2]
[327639806,1716265836126,-310.0,0.00035498,4]
[327639807,1716265836135,-1094.13062273,0.00035498,4]
[327639808,1716265836144,-254.16445086,0.00035498,4]
[327639809,1716265836154,-1496.08554914,0.00035498,4]
[327639810,1716265836164,-3952.12611791,0.00035498,4]
[327639811,1716265836173,-5118.40500478,0.00035498,4]
[327639812,1716265836187,-500.0,0.00035499,7]
[327639813,1716265836196,-500.0,0.00035499,7]
[327639814,1716265836206,-500.0,0.00035499,7]
[327639815,1716265836216,-500.0,0.00035499,7]
[327639816,1716265836226,-285.14827773,0.00035499,7]
[327639817,1716265836236,-500.0,0.00035499,7]
[327639818,1716265836246,-500.0,0.00035499,7]
[327639819,1716265836255,-336.49211903,0.00035499,7]
[327639820,1716265836264,-500.0,0.00035499,7]
[327639821,1716265836273,-500.0,0.00035499,7]
[327639822,1716265836282,-500.0,0.00035499,7]
[327639823,1716265836292,-353.48256167,0.00035499,7]
[327639824,1716265836301,-500.0,0.00035499,7]
[327639825,1716265836311,-225.22265642,0.00035499,7]
[327639826,1716265836320,-500.0,0.00035499,7]
[327639827,1716265836330,-500.0,0.00035499,7]
[327639828,1716265836339,-500.0,0.00035499,7]
[327639829,1716265836349,-500.0,0.00035499,7]
[327639830,1716265836358,-500.0,0.00035499,7]
[327639831,1716265836367,-500.0,0.00035499,7]
[327639832,1716265836376,-500.0,0.00035499,7]
[327639833,1716265836385,-500.0,0.00035499,7]
[327639834,1716265836395,-500.0,0.00035499,7]
[327639835,1716265836404,-500.0,0.00035499,7]
[327639836,1716265836414,-500.0,0.00035499,7]
[327639837,1716265836423,-500.0,0.00035499,7]
[327639838,1716265836432,-500.0,0.00035499,7]
[327639839,1716265836442,-500.0,0.00035499,7]
[327639840,1716265836451,-500.0,0.00035499,7]
[327639841,1716265836461,-525.51953165,0.00035499,7]
[327639842,1716265836472,-500.0,0.00035499,7]
[327639843,1716265836483,-500.0,0.00035499,7]
[327639844,1716265836493,-500.0,0.00035499,7]
[327639845,1716265836503,-500.0,0.00035499,7]
[327639846,1716265836512,-500.0,0.00035499,7]
[327639847,1716265836522,-636.78051929,0.00035499,7]
[327639848,1716265836532,-500.0,0.00035499,7]
[327639849,1716265836542,-348.53116881,0.00035499,7]
[327639850,1716265836553,-500.0,0.00035499,7]
[327639851,1716265836563,-500.0,0.00035499,7]
[327639852,1716265836573,-500.0,0.00035499,7]
[327639853,1716265836583,-158.12597723,0.00035499,7]
[327639854,1716265836593,-164.81153136,0.00035499,7]
[327639855,1716265836603,-154.90783171,0.00035499,7]
[327639856,1716265836613,-150.0,0.00035499,2]
[327639857,1716265836622,-150.0,0.00035499,2]
[327639858,1716265836631,-150.0,0.00035499,2]
[327639859,1716265836640,-150.0,0.00035499,2]
[327639860,1716265836650,-150.0,0.00035499,2]
[327639861,1716265836664,-150.0,0.00035499,2]
[327639862,1716265836674,-150.0,0.00035499,2]
[327639863,1716265836683,-150.0,0.00035499,2]
[327639864,1716265836693,-150.0,0.00035499,2]
[327639865,1716265836704,-150.0,0.00035499,2]
[327639866,1716265836714,-151.67291054,0.00035499,2]
[327639867,1716265836724,-151.0,0.000355,2]
[327639868,1716265836734,-235.03278909,0.000355,2]
[327639869,1716265836746,-288999.75395153,0.000355,5]
[327639870,1716265836762,-435.0,0.000355,5]
[327639871,1716265836773,-7606.31785535,0.000355,5]
[327639872,1716265836785,-836.74867698,0.000355,5]
[327639873,1716265836912,-385.61293787,0.000354,2]
[327639874,1716265836922,-32.99325018,0.000355,5]
[327639875,1716265836934,-500.05224,0.000355,5]
[327639876,1716265836950,-4100.0,0.000355,5]
[327639877,1716265836965,-424.54627044,0.000355,5]
[327639878,1716265836977,-2175.45372956,0.000355,5]
[327639893,1716265838284,-696.43669274,0.00035399,2]
[327639895,1716265838295,-464.00526388,0.00035399,2]
[327639896,1716265838304,-535.68353605,0.00035399,2]
[327639919,1716265843601,-624.75842057,0.00035399,2]
[327639920,1716265843611,-1160.44195662,0.000354,2]
[327639921,1716265843620,-2905.62147973,0.000354,2]
[327639922,1716265843629,-1322.23485384,0.000354,2]
[327639923,1716265843638,-151736.76994273,0.000355,15]
[327639924,1716265843649,-5449.51948279,0.000355,15]
[327639925,1716265843676,-82394.59077588,0.000355,15]
[327639926,1716265843685,-1507064.64367009,0.000355,5]
[327639927,1716265843695,-92253.48039079,0.000355,5]
[327639928,1716265843712,-16751.85427636,0.000355,5]
[327639943,1716265847652,-456.95484459,0.00035499,2]
[327639944,1716265847747,-617.74999965,0.000354,2]
[327639945,1716265847760,-542.69195697,0.000354,2]
[327639946,1716265847769,-463.14227828,0.000354,2]
[327639947,1716265847779,-2023.88732431,0.00035499,2]
[327639948,1716265847791,-352975.65218523,0.000355,5]
[327639949,1716265847821,-151.35999997,0.000355,5]
[327639950,1716265847849,-2448.7887759,0.000355,5]
[327639951,1716265847860,-710.59,0.000355,5]
[327640265,1716265876000,1298.18587077,0.00017259,2]
[327640266,1716265905918,808.59063736,0.00017159,2]
[327640267,1716266024473,191687.4,0.00013,2]
[327640268,1716266024501,862256.18596926,0.00013,2]
[327640269,1716266071593,153072.486694,0.00011667,2]
[327640270,1716266121624,155.67,0.00013973,2]
[327640313,1716266344388,381.23286506,0.00013973,2]
[327640314,1716266345455,155.15216631,0.00013973,2]
[327640316,1716266352460,51113.23742362,0.00013973,2]
[327640367,1716266452875,-162.63741046,0.00017142,2]
[327640368,1716266452898,-656.59256229,0.00017143,2]
[327640369,1716266452921,-4598.04156785,0.00017143,2]
[327640370,1716266452946,-325.95749246,0.00017144,2]
[327640371,1716266452969,-446.72141582,0.00017144,2]
[327640372,1716266452992,-35372.63857733,0.00017158,2]
[327640373,1716266453016,-150.0,0.00017158,2]
[327640374,1716266453039,-8407.51046264,0.00017159,2]
[327640375,1716266453061,-210.0,0.00018874,2]
[327640376,1716266453084,-499.99,0.00018874,2]
[327640377,1716266453105,-2563.98,0.00018874,2]
[327640378,1716266453126,-3584.36,0.00019452,2]
[327640379,1716266453149,-1493.37,0.00019452,2]
[327640380,1716266453171,-232.93,0.00019452,2]
[327640381,1716266453193,-299.99,0.00019726,7]
[327640382,1716266453215,-310.97,0.00020951,2]
[327640383,1716266453238,-186.5834836,0.00021094,2]
[327640384,1716266453260,-787.45461326,0.00022677,2]
[327640385,1716266453281,-172.95,0.00022678,2]
[327640386,1716266453303,-23900.0,0.00022952,2]
[327640387,1716266453324,-166.66666667,0.00023195,2]
[327640388,1716266453347,-1100.06,0.00023245,2]
[327640389,1716266453372,-565.95050376,0.00024,3]
[327640390,1716266453393,-50264.08643359,0.00024266,2]
[327640391,1716266453417,-174.0,0.00025,2]
[327640392,1716266456058,325.95749246,0.00017141,2]
[327640406,1716266467438,-155.61685089,0.00025262,2]
[327640407,1716266467462,-3474.14,0.00025362,2]
[327640408,1716266467485,-250.0,0.00025362,2]
[327640409,1716266467509,-250.0,0.0002595,2]
[327640410,1716266467533,-1100.06,0.00025985,2]
[327640411,1716266467560,-192.16138633,0.00026354,2]
[327640412,1716266467589,-155.61685083,0.00026388,2]
[327640413,1716266467618,-2000.0,0.00027,2]
[327640423,1716266478377,-2000.0,0.0002701,2]
[327640424,1716266478399,-2000.0,0.0002702,2]
[327640426,1716266478420,-2366.81009,0.0002703,2]
[327640427,1716266478440,-4000.0,0.00027397,2]
[327640428,1716266478461,-4061.0,0.000274,3]
[327640429,1716266478482,-155.61685083,0.00027515,2]
[327640430,1716266478504,-519.97,0.00027646,2]
[327640431,1716266478525,-186.5834836,0.00028423,2]
[327640432,1716266478548,-180.0,0.00028549,2]
[327640433,1716266478571,-155.61685083,0.00028641,2]
[327640434,1716266478595,-1100.06,0.00028724,2]
[327640436,1716266488851,-155.61685083,0.00029768,2]
[327640437,1716266488874,-519.97,0.0002991,2]
[327640441,1716266535941,154.53280895,0.00021364,2]
[327640442,1716266536152,152.89424695,0.00022441,2]
[327640443,1716266536444,154.53280895,0.00022602,2]
[327640444,1716266536629,152.89424695,0.00027742,2]
[327640445,1716266536919,154.53280895,0.00024498,2]
[327640446,1716266537288,152.89424695,0.00029728,2]
[327640447,1716266537406,154.53280895,0.00027582,2]
[327640448,1716266537903,154.53280895,0.00027684,2]
[327640449,1716266538977,154.53280895,0.00028199,2]
[327640450,1716266539497,154.53280895,0.00029311,2]
[327640451,1716266555758,154.74831959,0.00025464,2]
[327640452,1716266559138,161.00066919,0.00028792,2]
[327640453,1716266559172,155.95810749,0.00024306,2]
[327640454,1716266559735,155.95810749,0.00024335,2]
[327640455,1716266560256,155.95810749,0.00028383,2]
[327640456,1716266561766,150.92086884,0.00029101,2]
[327640457,1716266562961,166.66666666,0.00027708,2]
[327640458,1716266564349,153.42116948,0.00023962,2]
[327640459,1716266564789,153.42116948,0.00024548,2]
[327640460,1716266565130,164.45478355,0.00029951,2]
[327640461,1716266565237,153.42116948,0.00027129,2]
[327640462,1716266565847,153.67101316,0.00027557,2]
[327640463,1716266570356,1750.0,0.00021,2]
[327640464,1716266571454,1800.0,0.00023,2]
[327640465,1716266639612,19498.47414158,0.00019451,2]
[327640466,1716266695429,160.86,0.00013973,2]
[327640467,1716266702166,150.0,0.00019725,2]
[327640468,1716266702343,150.0,0.00019725,2]
[327640469,1716266711836,479.24310518,0.00019451,2]
[327640470,1716266739192,5221.12144525,0.00017259,2]
[327640471,1716266757062,365.31550258,0.00017259,2]
[327640472,1716266759816,-581.43530397,0.00026281,2]
[327640473,1716266769773,3061.76218889,0.00017259,2]
[327640474,1716266771864,2222.64085019,0.00017259,2]
[327640476,1716266826125,-206.01930929,0.00026281,2]
[327640477,1716266826147,-193.37,0.00026282,2]
[327640478,1716266826169,-164.75,0.00026363,2]
[327640479,1716266826191,-150.0,0.00027,2]
[327640480,1716266826212,-160.86,0.00027641,2]
[327640481,1716266826233,-2900.0148706,0.00028312,2]
[327640482,1716266838102,-154.53280895,0.00021608,2]
[327640483,1716266838128,-154.53280895,0.0002433,2]
[327640484,1716266838153,-154.53280895,0.00026317,2]
[327640485,1716266838181,-153.29266499,0.00026944,2]
[327640486,1716266838203,-59.71427709,0.00028312,2]
[327640487,1716266850108,-150.25232363,0.00021237,2]
[327640488,1716266850132,-153.67101316,0.00021771,2]
[327640489,1716266850157,-155.95810749,0.00022457,2]
[327640490,1716266850180,-152.89424695,0.00024378,2]
[327640491,1716266850203,-153.42116948,0.00025752,2]
[327640492,1716266850227,-1881.20085231,0.00028312,2]
[327640493,1716266850251,-4958.85,0.00028522,2]
[327640494,1716266850275,-4905.1,0.00028605,2]
[327640495,1716266850298,-4826.79,0.00028955,2]
[327640496,1716266850322,-400.0,0.00029,15]
[327640497,1716266850345,-2528.56001712,0.00029357,2]
[327640498,1716266950122,-155.56943574,0.00023686,2]
[327640508,1716266971091,-153.67101316,0.00024895,2]
[327640509,1716266971113,-4943.36,0.00028449,2]
[327640510,1716266971133,-168.57287103,0.0002866,2]
[327640511,1716266971152,-2734.69659334,0.0002871,2]
[327640518,1716267031519,-661.68277074,0.00028342,2]
[327640527,1716267031564,-257.69726089,0.00028342,2]
[327640528,1716267031576,-3927.25996837,0.00028342,2]
[327640529,1716267031586,-4955.45,0.000284,2]
[327640530,1716267031596,-1719.67327301,0.00028457,2]
[327640531,1716267032898,-3041.65688029,0.00028457,2]
[327640532,1716267032910,-101.9998467,0.00028457,2]
[327640533,1716267032919,-693.00278977,0.0002871,2]
[327640534,1716267032933,-355.34,0.0002871,2]
[327640535,1716267032946,-1157.26061689,0.0002871,2]
[327640536,1716267032956,-153.67101316,0.0002876,2]
[327640537,1716267032967,-411.95266443,0.00028942,2]
[327640538,1716267033032,-299.99,0.00028942,2]
[327640539,1716267033058,-288.05733557,0.00028942,2]
[327640540,1716267033069,-1290.50023258,0.00028943,2]
[327640541,1716267033102,-482.99531256,0.00028943,2]
[327640542,1716267033113,-3056.38445486,0.00028943,2]
[327640543,1716267033124,-466.89672406,0.00029239,2]
[327640544,1716267033149,-3118.45281985,0.00029239,2]
[327640579,1716267037890,-4923.44,0.00028371,2]
[327640580,1716267037900,-3320.31280833,0.00029239,2]
[327640581,1716267037911,-19498.47414158,0.00029239,2]
[327640582,1716267037921,-4949.99,0.0002924,2]
[327640584,1716267037931,-2408.79998288,0.00029357,2]
[327640586,1716267037940,-154.53280895,0.00029474,2]
[327640588,1716267037950,-533.8,0.00029474,2]
[327640590,1716267037960,-299.99,0.00029474,12]
[327640592,1716267037970,-4918.54,0.00029502,2]
[327640594,1716267037980,-153.67101316,0.00029561,2]
[327640596,1716267037990,-153.42116948,0.00029606,2]
[327640598,1716267037999,-4887.3,0.00029737,2]
[327640600,1716267038009,-152.89424695,0.00029738,2]
[327640602,1716267038018,-1000.0,0.0003006,2]
[327640604,1716267038028,-4938.53,0.00030061,2]
[327640605,1716267038037,-467.97,0.00030123,2]
[327640606,1716267038047,-3403.2592,0.00030483,2]
[327640608,1716267038061,-152.52,0.00030583,120]
[327640609,1716267038071,-153.67101317,0.00030818,7]
[327640610,1716267038081,-1000.0,0.00030962,2]
[327640612,1716267038090,-1058.00044008,0.00031189,4]
[327640614,1716267038099,-1939.78013,0.0003119,2]
[327640615,1716267038109,-155.95810749,0.00031239,7]
[327640616,1716267038118,-1939.78013,0.0003127,2]
[327640617,1716267038129,-1939.78013,0.0003143,2]
[327640618,1716267038139,-1939.78014,0.0003159,2]
[327640619,1716267038148,-1939.78013,0.0003174,2]
[327640620,1716267038157,-1939.78013,0.000319,2]
[327640621,1716267038167,-170.73,0.00031941,120]
[327640622,1716267038177,-200.0,0.00031956,2]
[327640623,1716267038187,-250.0,0.00032086,2]
[327640624,1716267038196,-160.46,0.00032279,120]
[327640625,1716267038207,-154.53280895,0.00032366,7]
[327640626,1716267038216,-467.97,0.00032387,2]
[327640627,1716267038226,-694.52,0.00032397,2]
[327640628,1716267038236,-152.89424695,0.0003241,7]
[327640629,1716267038245,-250.0,0.00032726,2]
[327640630,1716267038255,-2000.0,0.00032909,120]
[327640631,1716267038265,-500.0,0.00032909,2]
[327640632,1716267038276,-1000.0,0.00032966,2]
[327640633,1716267038285,-1657.159271,0.00033,2]
[327640634,1716267038295,-150.0,0.00033142,2]
[327640635,1716267038308,-154.53280895,0.00033247,7]
[327640636,1716267038318,-593.18,0.00033351,2]
[327640637,1716267038328,-593.18,0.00033443,2]
[327640638,1716267038337,-152.31,0.000335,2]
[327640639,1716267038347,-152.31,0.000335,2]
[327640640,1716267038357,-152.31,0.000335,2]
[327640641,1716267038367,-152.31,0.000335,2]
[327640642,1716267038376,-152.31,0.000335,2]
[327640643,1716267038384,-152.31,0.000335,2]
[327640644,1716267038534,-152.31,0.000335,2]
[327640645,1716267038562,-152.31,0.000335,2]
[327640646,1716267038572,-152.31,0.000335,2]
[327640647,1716267038581,-152.31,0.000335,2]
[327640648,1716267038591,-152.31,0.000335,2]
[327640649,1716267038600,-152.31,0.000335,2]
[327640650,1716267038609,-152.31,0.000335,2]
[327640651,1716267038620,-152.31,0.000335,2]
[327640652,1716267038629,-152.31,0.000335,2]
[327640653,1716267038639,-593.18,0.00033534,2]
[327640654,1716267038648,-155.56943574,0.00033587,7]
[327640655,1716267038658,-593.18,0.00033626,2]
[327640656,1716267038669,-153.42116948,0.00033643,7]
[327640657,1716267038678,-593.18,0.00033717,2]
[327640658,1716267038687,-779.19361935,0.00033723,4]
[327640659,1716267038697,-593.18,0.00033809,2]
[327640660,1716267038706,-593.18,0.000339,2]
[327640661,1716267038716,-154.53280895,0.00033942,7]
[327640662,1716267038725,-593.18,0.00033991,2]
[327640663,1716267038735,-150.92086884,0.00034075,7]
[327640664,1716267038745,-593.18,0.00034083,2]
[327640665,1716267038755,-154.53280895,0.00034124,7]
[327640666,1716267038764,-593.18,0.00034174,2]
[327640667,1716267038774,-593.18,0.00034266,2]
[327640668,1716267038783,-172.07,0.00034301,2]
[327640669,1716267038793,-593.18,0.00034357,2]
[327640670,1716267038803,-593.18,0.00034449,2]
[327640671,1716267038812,-593.18,0.0003454,2]
[327640672,1716267038822,-1005.1212254,0.00034574,2]
[327640673,1716267038831,-20000.0,0.00034575,2]
[327640674,1716267038841,-593.18,0.00034632,2]
[327640675,1716267038850,-467.97,0.00034651,2]
[327640676,1716267038860,-593.18,0.00034723,2]
[327640677,1716267038869,-593.18,0.00034815,2]
[327640678,1716267038879,-593.18,0.00034906,2]
[327640679,1716267038888,-593.18,0.00034998,2]
[327640680,1716267038897,-4265.33750399,0.00035,4]
[327640681,1716267038907,-5079.69634499,0.00035072,2]
[327640682,1716267038917,-593.18,0.00035089,2]
[327640683,1716267038927,-1598.85772746,0.00035246,2]
[327640684,1716267038936,-210.6547,0.000353,2]
[327640685,1716267038945,-1765.4207,0.000353,2]
[327640686,1716267038954,-155.61685083,0.00035366,2]
[327640687,1716267038964,-174.05,0.00035366,2]
[327640688,1716267038973,-155.61685083,0.00035375,2]
[327640689,1716267038983,-155.61685083,0.00035383,2]
[327640690,1716267038994,-155.61685083,0.00035392,2]
[327640691,1716267039004,-256.9319,0.00035398,2]
[327640692,1716267039014,-1270.1382,0.00035399,2]
[327640693,1716267039023,-1068.0234,0.000354,2]
[327640694,1716267039033,-160.32491104,0.000354,2]
[327640695,1716267039043,-2050.29,0.000354,2]
[327640696,1716267039055,-202.98768086,0.000354,8]
[327640697,1716267039065,-1432.7661678,0.000354,8]
[327640698,1716267039075,-179.11476803,0.000354,8]
[327640699,1716267039086,-155.61685083,0.000354,2]
[327640700,1716267039096,-2320.88391324,0.000354,2]
[327640701,1716267039106,-31155.09902025,0.000354,2]
[327640702,1716267039116,-4097.76441295,0.00035466,4]
[327640703,1716267039126,-150.5,0.0003548,15]
[327640704,1716267039136,-280.23,0.0003549,15]
[327640705,1716267039149,-150.5,0.0003549,15]
[327640706,1716267039159,-201.52154248,0.0003549,2]
[327640707,1716267039168,-307.25961932,0.00035498,4]
[327640708,1716267039178,-234.47101263,0.00035498,4]
[327640709,1716267039189,-793.69045832,0.00035498,4]
[327640710,1716267039198,-201.9538546,0.00035498,4]
[327640711,1716267039208,-3112.04369868,0.00035498,4]
[327640712,1716267039217,-155.27443187,0.00035498,4]
[327640713,1716267039227,-155.30937043,0.00035498,4]
[327640714,1716267039237,-209.99387941,0.00035498,4]
[327640715,1716267039246,-265.07147825,0.00035498,4]
[327640716,1716267039256,-205.88308092,0.00035498,4]
[327640717,1716267039265,-2327.83056448,0.00035498,4]
[327640718,1716267039275,-407.24197213,0.00035498,4]
[327640719,1716267039285,-159.85535788,0.00035498,4]
[327640720,1716267039294,-587.91310915,0.00035498,4]
[327640721,1716267039304,-179.45861591,0.00035498,4]
[327640722,1716267039313,-196.39469532,0.00035498,4]
[327640723,1716267039322,-155.60556443,0.00035498,4]
[327640724,1716267039331,-328.36282116,0.00035498,4]
[327640725,1716267039340,-155.0,0.00035498,4]
[327640726,1716267039349,-283.02534718,0.00035498,4]
[327640727,1716267039359,-789.76596071,0.00035498,2]
[327640728,1716267039369,-155.07982895,0.00035498,4]
[327640729,1716267039380,-4740.8727,0.00035498,4]
[327640730,1716267039390,-5185.19650813,0.00035498,4]
[327640731,1716267039399,-320.96169643,0.00035498,4]
[327640732,1716267039409,-217.3597043,0.00035498,4]
[327640733,1716267039418,-5581.63801379,0.00035498,4]
[327640734,1716267039428,-155.09650095,0.00035498,4]
[327640735,1716267039437,-177.31001193,0.00035498,4]
[327640736,1716267039447,-155.0,0.00035498,4]
[327640737,1716267039456,-780.43921361,0.00035498,4]
[327640738,1716267039465,-163.38460229,0.00035498,4]
[327640739,1716267039474,-655.70533281,0.00035498,4]
[327640740,1716267039484,-454.68957705,0.00035498,4]
[327640741,1716267039493,-347.22895864,0.00035498,4]
[327640742,1716267039503,-2355.78682836,0.00035498,4]
[327640743,1716267039512,-1902.89753194,0.00035498,14]
[327640744,1716267039521,-567.73158172,0.00035498,4]
[327640745,1716267039531,-35099.70750203,0.00035499,4]
[327640746,1716267039541,-2986.90495476,0.00035499,4]
[327640747,1716267039550,-88003.31265779,0.000355,15]
[327640749,1716267039645,-6321.04549956,0.000355,15]
[327640750,1716267039656,-1002.17367765,0.000355,15]
[327640751,1716267039668,-3024.53250613,0.000355,15]
[327640752,1716267040034,-402.89418,0.000355,15]
[327640753,1716267040166,-2e-08,0.000355,15]
[327640754,1716267041526,-2089.3100448,0.00028315,2]
[327640779,1716267042704,-2434.5627962,0.00028315,2]
[327640780,1716267042714,-162.17639617,0.00033643,2]
[327640781,1716267042726,-6100.0,0.00033643,2]
[327640782,1716267042746,-963.84360383,0.00033643,2]
[327640783,1716267042756,-21365.3425798,0.000355,15]
[327640784,1716267042766,-57741.77319054,0.000355,5]
[327640785,1716267042777,-7054.43033884,0.000355,5]
[327640786,1716267042801,-836.60016149,0.000355,5]
[327640787,1716267043006,-522.85720027,0.000355,5]
[327640788,1716267043724,-28339.11738152,0.000355,5]
[327640789,1716267043736,-557918.95339053,0.000355,5]
[327640790,1716267043748,-259918.80737364,0.000355,5]
[327640791,1716267043761,-4549.95946437,0.000355,5]
[327640792,1716267043812,-3903.73132864,0.000355,5]
[327640794,1716267046022,-485.27295591,0.000355,5]
[327640795,1716267046033,-630.19475934,0.000355,5]
[327640796,1716267046091,-0.02085497,0.000355,5]
[327640797,1716267046156,-2661.75095914,0.000355,5]
[327640798,1716267046944,-515.25,0.000355,5]
[327640799,1716267046955,-744.912,0.000355,5]
[327640934,1716267062333,150.0,0.00019725,2]
[327640935,1716267063192,210.0,0.00021698,2]
[327640937,1716267079671,163.38,0.00021918,2]
[327640938,1716267093444,6024.18466635,0.00017533,2]